lending/lending_fUSD_20250424
["ID","MTS","AMOUNT","RATE_DAILY","PERIOD"]
[358859568,1745489446015,-499.42108738,0.00046198,7]
[358859571,1745489446025,-1182.78,0.00046198,2]
[358859573,1745489446034,-1182.78,0.00046198,2]
[358859575,1745489446045,-1182.78,0.00046198,2]
[358859577,1745489446054,-1182.78,0.00046198,2]
[358859579,1745489446064,-1182.78,0.00046198,2]
[358859581,1745489446074,-1182.78,0.00046198,2]
[358859584,1745489446083,-1182.78,0.00046198,2]
[358859586,1745489446093,-1182.78,0.00046198,2]
[358859588,1745489446102,-1182.78,0.00046198,2]
[358859591,1745489446113,-1182.78,0.00046198,2]
[358859593,1745489446123,-1182.78,0.00046198,2]
[358859596,1745489446133,-1182.78,0.00046198,2]
[358859599,1745489446143,-1182.78,0.00046198,2]
[358859601,1745489446152,-1182.78,0.00046198,2]
[358859603,1745489446163,-1182.78,0.00046198,2]
[358859605,1745489446173,-1182.78,0.00046198,2]
[358859607,1745489446182,-1182.78,0.00046198,2]
[358859609,1745489446192,-1182.78,0.00046198,2]
[358859611,1745489446202,-1182.78,0.00046198,2]
[358859613,1745489446212,-1182.78,0.00046198,2]
[358859615,1745489446221,-1182.78,0.00046198,2]
[358859616,1745489446231,-1182.78,0.00046198,2]
[358859617,1745489446240,-1182.78,0.00046198,2]
[358859618,1745489446249,-1182.91452212,0.00046198,2]
[358859619,1745489446259,-504.11,0.00046198,8]
[358859620,1745489446268,-504.11,0.00046198,8]
[358859621,1745489446279,-504.11,0.00046198,8]
[358859622,1745489446288,-504.11,0.00046198,8]
[358859623,1745489446297,-504.11,0.00046198,8]
[358859624,1745489446307,-504.11,0.00046198,8]
[358859625,1745489446316,-504.11,0.00046198,8]
[358859626,1745489446326,-504.11,0.00046198,8]
[358859627,1745489446336,-504.11,0.00046198,8]
[358859629,1745489446346,-504.11,0.00046198,8]
[358859631,1745489446355,-504.11,0.00046198,8]
[358859633,1745489446365,-504.11,0.00046198,8]
[358859635,1745489446375,-504.11,0.00046198,8]
[358859637,1745489446385,-504.11,0.00046198,8]
[358859639,1745489446395,-504.11,0.00046198,8]
[358859641,1745489446404,-504.11,0.00046198,8]
[358859643,1745489446413,-504.11,0.00046198,8]
[358859645,1745489446424,-504.11,0.00046198,8]
[358859647,1745489446434,-504.11,0.00046198,8]
[358859649,1745489446444,-504.11,0.00046198,8]
[358859651,1745489446454,-504.11,0.00046198,8]
[358859653,1745489446464,-504.11,0.00046198,8]
[358859655,1745489446474,-504.11,0.00046198,8]
[358859657,1745489446483,-504.22992065,0.00046198,8]
[358859659,1745489446492,-500.0,0.00046198,7]
[358859661,1745489446502,-500.0,0.00046198,7]
[358859663,1745489446511,-500.0,0.00046198,7]
[358859665,1745489446521,-500.0,0.00046198,7]
[358859667,1745489446530,-500.0,0.00046198,7]
[358859669,1745489446540,-500.0,0.00046198,7]
[358859671,1745489446549,-500.0,0.00046198,7]
[358859673,1745489446558,-500.0,0.00046198,7]
[358859675,1745489446567,-500.0,0.00046198,7]
[358859677,1745489446577,-528.35266645,0.00046198,7]
[358859679,1745489446586,-351390.29,0.00046198,7]
[358859681,1745489446596,-351390.29,0.00046198,7]
[358859683,1745489446607,-351390.29,0.00046198,7]
[358859685,1745489446616,-351390.29,0.00046198,7]
[358859687,1745489446626,-215262.05603644,0.00046198,7]
[358859712,1745489446842,-151.0,0.00020707,2]
[358859714,1745489446851,-6453.30042555,0.00046198,7]
[358859717,1745489446871,-500.0,0.00046197,2]
[358859719,1745489446880,-13745.97883137,0.00046198,7]
[358859733,1745489447007,-1259.05,0.00020704,2]
[358859735,1745489447016,-151.0,0.00020707,2]
[358859737,1745489447026,-1259.05,0.00022968,2]
[358859738,1745489447036,-99.00488298,0.00025232,2]
[358859739,1745489447048,-274.19986352,0.00025232,2]
[358859740,1745489447060,-335.82925495,0.00025232,2]
[358859741,1745489447079,-550.01599855,0.00025232,2]
[358859742,1745489447088,-371.5271299,0.00027496,2]
[358859743,1745489447099,-500.0,0.00027496,2]
[358859744,1745489447115,-387.5228701,0.00027496,2]
[358859745,1745489447124,-108.16432801,0.0002976,2]
[358859746,1745489447136,-1150.88567199,0.0002976,2]
[358859747,1745489447146,-1259.05,0.00032024,2]
[358859748,1745489447155,-1259.05,0.00034288,2]
[358859749,1745489447165,-1000.0,0.00043699,14]
[358859750,1745489447175,-500.0,0.00046197,2]
[358859751,1745489447185,-500.0,0.00046197,2]
[358859752,1745489447195,-500.0,0.00046197,2]
[358859753,1745489447204,-3787.72407265,0.00046198,7]
[358859754,1745489447215,-2635.004524,0.00046198,7]
[358859756,1745489447226,-779.30458002,0.00046198,7]
[358859758,1745489447237,-917.65074819,0.00046198,7]
[358859760,1745489447248,-9192.43820384,0.00046198,7]
[358859769,1745489447326,-1259.05,0.00036551,2]
[358859771,1745489447338,-1259.05,0.00038815,2]
[358859773,1745489447348,-1259.05,0.00041079,2]
[358859775,1745489447357,-1259.05,0.00043343,2]
[358859777,1745489447366,-1000.0,0.00043836,14]
[358859779,1745489447375,-1000.0,0.00043973,14]
[358859781,1745489447384,-11805.57432749,0.0004539,15]
[358859783,1745489447393,-1259.05,0.00045607,2]
[358859785,1745489447403,-98616.83257794,0.00046198,7]
[358859787,1745489447412,-351390.29,0.00046198,7]
[358859789,1745489447421,-351390.29,0.00046198,7]
[358859791,1745489447431,-351390.29,0.00046198,7]
[358859793,1745489447440,-351390.29,0.00046198,7]
[358859795,1745489447450,-351390.29,0.00046198,7]
[358859797,1745489447459,-351390.29,0.00046198,7]
[358859799,1745489447468,-290805.65690859,0.00046198,7]
[358859839,1745489447868,-500.0,0.00041095,2]
[358859841,1745489447878,-398.70939584,0.00041369,2]
[358859843,1745489447887,-1000.0,0.0004411,14]
[358859845,1745489447896,-1339.79881503,0.00046198,7]
[358859848,1745489447911,-8578.53856747,0.00046198,7]
[358859850,1745489447923,-50666.29570891,0.00046198,7]
[358859852,1745489447932,-248245.31049109,0.00046198,7]
[358859854,1745489447943,-1645.64552435,0.00046198,7]
[358860785,1745489467402,-550.66700527,0.00019973,2]
[358860786,1745489467425,-700.0,0.00027397,2]
[358860787,1745489467446,-700.0,0.00027397,2]
[358860788,1745489467467,-700.0,0.00027397,2]
[358860789,1745489467487,-700.0,0.00027397,2]
[358860790,1745489467509,-149.33299473,0.00027397,2]
[358860792,1745489478398,-550.66700527,0.00027397,2]
[358860793,1745489490679,-301.21,0.00029397,2]
[358860794,1745489490704,-302.36,0.00029397,2]
[358860796,1745489494523,413.46723,0.00037808,60]
[358860798,1745489508785,-2000.0,0.0002,2]
[358860805,1745489573001,-219.68516246,0.00019999,2]
[358860806,1745489573024,-419.58,0.00019999,2]
[358860807,1745489573047,-3178.70728201,0.0002,2]
[358860808,1745489573071,-285.02755553,0.0002,2]
[358860813,1745489606956,1284.051,0.00037808,60]
[358860832,1745489799856,1624.0528975,0.00037808,120]
[358860875,1745490005175,1373.88,0.00019,2]
[358860901,1745490099912,250.0,0.00017,2]
[358860902,1745490100995,300.0,0.00019,2]
[358860916,1745490327891,196.85265481,0.00011,2]
[358860917,1745490351296,2446.04,0.00030761,120]
[358860920,1745490433791,1021.34665565,0.00037808,60]
[358860921,1745490448902,472.27670964,0.00035,120]
[358860922,1745490478059,2440.0975058,0.0002,4]
[358860931,1745490523468,198.50998917,0.00028,60]
[358860941,1745490603120,1326.52416734,0.00029,60]
[358860942,1745490603159,14520.26585936,0.00029,120]
[358860952,1745490632438,-1473.74424324,0.0001968,2]
[358860953,1745490632493,-2116.29532423,0.0001968,2]
[358860954,1745490632503,-150.0,0.0001979,2]
[358860955,1745490632513,-1200.0,0.00019899,2]
[358860956,1745490632523,-300.0,0.00019899,2]
[358860957,1745490632533,-153.77961372,0.00019899,2]
[358860958,1745490632543,-293.706,0.00019899,2]
[358860959,1745490632553,-13467.7484481,0.000199,2]
[358860960,1745490632563,-21435.08706395,0.000199,2]
[358860961,1745490632575,-20840.10829769,0.000199,2]
[358860962,1745490632587,-663.23,0.000199,2]
[358860963,1745490632607,-1929.88700768,0.000199,2]
[358861018,1745490638449,-61381.85657813,0.000199,2]
[358861019,1745490638466,-5034.42737038,0.000199,2]
[358861020,1745490638476,-179.6864591,0.000199,2]
[358861021,1745490638487,-184.62091697,0.000199,2]
[358861022,1745490638497,-606.0,0.00019973,2]
[358861023,1745490638507,-160.40569481,0.00019973,2]
[358861024,1745490638516,-205.21480445,0.00019973,2]
[358861025,1745490638525,-501.04190365,0.00019973,2]
[358861026,1745490638537,-1217.4295604,0.0001999,2]
[358861027,1745490638547,-1217.4295604,0.0001999,2]
[358861028,1745490638556,-1217.4295604,0.0001999,2]
[358861029,1745490638572,-1022.5489785,0.00019999,2]
[358861030,1745490638582,-500.0,0.00019999,2]
[358861031,1745490638591,-500.0,0.00019999,2]
[358861032,1745490638601,-500.0,0.00019999,2]
[358861033,1745490638610,-9443.96392083,0.00019999,2]
[358861034,1745490638620,-2348.59,0.00019999,2]
[358861035,1745490638630,-1259586.5326162,0.0002,2]
[358861036,1745490638640,-213.31021645,0.0002,2]
[358861037,1745490638649,-157.155786,0.0002,2]
[358861038,1745490638659,-156830.7620098,0.0002,2]
[358861039,1745490638674,-2494318.525,0.0002,2]
[358861040,1745490638687,-281.78651295,0.0002,2]
[358861061,1745490638883,-5265.57996793,0.0002,2]
[358861234,1745490640633,-862.71886409,0.0002,2]
[358861241,1745490640689,-18516.8,0.0002,2]
[358861514,1745490643397,-4333.98921527,0.0002,2]
[358861538,1745490643614,-1017.40541838,0.0002,2]
[358861545,1745490643670,-22181.32174825,0.0002,2]
[358861552,1745490643725,-4368.71488321,0.0002,2]
[358861827,1745490646708,-27782.80521499,0.0002,2]
[358862716,1745490701441,206.78,0.00025276,120]
[358862717,1745490701648,206.78,0.00028085,120]
[358862718,1745490701854,206.78,0.00030893,120]
[358862719,1745490702052,206.78,0.00033702,120]
[358862720,1745490884462,3999.999,0.00037808,60]
[358862721,1745490980933,186.68,0.00017523,2]
[358862728,1745491524461,895.35,0.00018648,2]
[358862765,1745491674921,200.0,0.0003013,120]
[358862767,1745491702628,154.0,0.000378,60]
[358862790,1745491836106,-320.58409593,0.0001971,2]
[358862791,1745491836119,-265.35590407,0.0001971,2]
[358862792,1745491836131,-1200.0,0.00019799,2]
[358862793,1745491836141,-251.45294594,0.00019799,2]
[358862794,1745491836210,-48.54705406,0.00019799,2]
[358862795,1745491836220,-6877.976,0.000198,2]
[358862796,1745491836230,-658.28317228,0.000198,2]
[358862797,1745491836263,-415.32026094,0.000198,2]
[358862798,1745491836276,-790.11596678,0.000198,2]
[358862799,1745491836287,-150.0,0.00019863,2]
[358862800,1745491836297,-340.75216429,0.0001989,2]
[358862801,1745491836310,-1796.10896561,0.0001989,2]
[358862802,1745491836325,-3174.09481342,0.0001989,2]
[358862803,1745491836336,-5310.95594331,0.00019891,2]
[358862804,1745491836346,-5310.95594331,0.00019892,2]
[358862805,1745491836356,-5310.95594331,0.00019893,2]
[358862806,1745491836367,-5310.95594331,0.00019894,2]
[358862807,1745491836376,-5310.95594331,0.00019896,2]
[358862808,1745491836387,-7139.56,0.00019896,2]
[358862809,1745491836397,-5310.95594331,0.00019897,2]
[358862810,1745491836411,-5310.95594331,0.00019898,2]
[358862811,1745491836421,-1022.5489785,0.00019898,2]
[358862813,1745491836431,-3214.60457974,0.00019899,2]
[358862815,1745491836444,-787.72537109,0.00019899,2]
[358862817,1745491836456,-593.35042861,0.00019899,2]
[358862819,1745491836468,-518.32839176,0.00019899,2]
[358862822,1745491836486,-196.94717211,0.00019899,2]
[358862824,1745491836500,-305.26242551,0.00019899,2]
[358862827,1745491836522,-694.73757449,0.00019899,2]
[358862829,1745491836532,-9443.96392083,0.00019899,2]
[358862831,1745491836543,-205.5942,0.00019899,2]
[358862833,1745491836553,-399.6292,0.000199,2]
[358862834,1745491836563,-336.60894922,0.000199,2]
[358862836,1745491836572,-5310.95594331,0.000199,2]
[358862837,1745491836582,-4953.18780623,0.000199,2]
[358862839,1745491836594,-13608.38355,0.000199,2]
[358862841,1745491837482,-824.93485951,0.000199,2]
[358862842,1745491837496,-590.08296798,0.000199,2]
[358862843,1745491837509,-114825.94005671,0.000199,2]
[358862844,1745491837529,-179.6864591,0.000199,2]
[358862845,1745491837542,-160.40569481,0.00019973,2]
[358862846,1745491837552,-606.0,0.00019973,2]
[358862847,1745491837564,-501.04190365,0.00019973,2]
[358862848,1745491837575,-205.21480445,0.00019973,2]
[358862849,1745491837586,-500.0,0.00019973,2]
[358862850,1745491837596,-1217.4295604,0.0001999,2]
[358862851,1745491837606,-1217.4295604,0.0001999,2]
[358862852,1745491837616,-1217.4295604,0.0001999,2]
[358862853,1745491837626,-500.0,0.00019999,2]
[358862854,1745491837637,-500.0,0.00019999,2]
[358862855,1745491837648,-666.0,0.00019999,2]
[358862856,1745491837658,-300.0,0.00019999,2]
[358862857,1745491837670,-500.0,0.00019999,2]
[358862858,1745491837680,-500.0,0.00019999,2]
[358862859,1745491837690,-500.0,0.00019999,2]
[358862860,1745491837699,-500.0,0.00019999,2]
[358862861,1745491837710,-500.0,0.00019999,2]
[358862862,1745491837720,-500.0,0.00019999,2]
[358862863,1745491837730,-500.0,0.00019999,2]
[358862864,1745491837741,-300.0,0.00019999,2]
[358862865,1745491837751,-2348.59,0.00019999,2]
[358862866,1745491837761,-150.0,0.00019999,2]
[358862867,1745491837771,-150.0,0.00019999,2]
[358862868,1745491837780,-150.0,0.00019999,2]
[358862869,1745491837790,-150.0,0.00019999,2]
[358862870,1745491837800,-150.0,0.00019999,2]
[358862872,1745491837810,-150.0,0.00019999,2]
[358862873,1745491837820,-150.0,0.00019999,2]
[358862875,1745491837829,-150.0,0.00019999,2]
[358862876,1745491837839,-150.0,0.00019999,2]
[358862877,1745491837850,-150.0,0.00019999,2]
[358862878,1745491837860,-150.0,0.00019999,2]
[358862880,1745491837870,-150.0,0.00019999,2]
[358862882,1745491837880,-150.0,0.00019999,2]
[358862884,1745491837890,-150.0,0.00019999,2]
[358862886,1745491837899,-1259932.89619769,0.0002,2]
[358862888,1745491837910,-213.31021645,0.0002,2]
[358862891,1745491837919,-112017.03192241,0.0002,2]
[358862893,1745491837936,-2494318.525,0.0002,2]
[358862896,1745491837948,-355.44831541,0.0002,2]
[358862899,1745491837965,-1461.40760009,0.0002,2]
[358862901,1745491837977,-531.36932621,0.0002,2]
[358862904,1745491837991,-20000.0,0.0002,2]
[358862906,1745491838008,-2547.105,0.0002,2]
[358862909,1745491838021,-953.82884201,0.0002,2]
[358862912,1745491838037,-2813.57906416,0.0002,2]
[358862914,1745491838050,-1548.13312365,0.0002,2]
[358862916,1745491838062,-611.70497818,0.0002,2]
[358863062,1745491839643,-3769.91389689,0.0002,2]
[358863064,1745491839656,-9096.64373114,0.0002,2]
[358863067,1745491839669,-8947.21879473,0.0002,2]
[358863069,1745491839682,-8943.78386462,0.0002,2]
[358863071,1745491839694,-9077.54866152,0.0002,2]
[358863074,1745491839708,-8943.84023489,0.0002,2]
[358863076,1745491839720,-654.839996,0.0002,2]
[358863080,1745491839749,-1028.93609989,0.0002,2]
[358863082,1745491839760,-682.60523184,0.0002,2]
[358863084,1745491839772,-1034.355,0.0002,2]
[358863087,1745491839784,-825.99656978,0.0002,2]
[358863089,1745491839802,-867.89771197,0.0002,2]
[358863092,1745491839815,-494.99999995,0.0002,2]
[358863094,1745491839827,-6223.95118919,0.0002,2]
[358863096,1745491839839,-500.0,0.0002,2]
[358863099,1745491839851,-577.46205938,0.0002,2]
[358863101,1745491839863,-6492.98264759,0.0002,2]
[358863103,1745491839876,-741.29069357,0.0002,2]
[358863105,1745491839889,-875.91699034,0.0002,2]
[358863108,1745491839901,-8876.83494985,0.0002,2]
[358863115,1745491839965,-9854.64352264,0.0002,2]
[358863117,1745491839977,-1000.0,0.0002,2]
[358863122,1745491840021,-619.76501894,0.0002,2]
[358863190,1745491840670,-490.0,0.0002,2]
[358863373,1745491842542,-1499.756,0.0002,2]
[358863375,1745491842554,-10937.10514328,0.0002,2]
[358863377,1745491842566,-9652.48560775,0.0002,2]
[358863381,1745491842596,-450.0,0.0002,2]
[358863383,1745491842609,-592.26600014,0.0002,2]
[358863389,1745491842652,-20050.5281298,0.0002,2]
[358863391,1745491842664,-2066.8021701,0.0002,2]
[358863396,1745491842705,-2499.97035566,0.0002,2]
[358863398,1745491842718,-2903.04000028,0.0002,2]
[358863404,1745491842761,-506.62630079,0.0002,2]
[358863406,1745491842774,-352.72799642,0.0002,2]
[358863412,1745491842815,-2513.09890421,0.0002,2]
[358863419,1745491842870,-485.305,0.0002,2]
[358863421,1745491842882,-1849.17996934,0.0002,2]
[358863423,1745491842893,-631.44,0.0002,2]
[358863426,1745491842905,-1356.4999996,0.0002,2]
[358863428,1745491842917,-471.928098,0.0002,2]
[358863630,1745491845529,-1526.77504163,0.0002,2]
[358863637,1745491845584,-1753.10207442,0.0002,2]
[358863638,1745491845596,-10211.94307124,0.0002,2]
[358863639,1745491845607,-467.96961399,0.0002,2]
[358863640,1745491845619,-320.6513186,0.0002,2]
[358863641,1745491845631,-12355.25501548,0.0002,2]
[358863642,1745491845643,-120132.95978371,0.0002,2]
[358863643,1745491845655,-1494.82228036,0.0002,2]
[358863644,1745491845667,-1133.22912252,0.0002,2]
[358863646,1745491845692,-536.91118955,0.0002,2]
[358863648,1745491845858,-320.2207373,0.0002,2]
[358863649,1745491845908,-1417.56443875,0.0002,2]
[358863650,1745491845920,-5133.69117206,0.0002,2]
[358863653,1745491863579,602750.25292153,0.00037808,60]
[358863654,1745491935739,250.0,0.00017,2]
[358863655,1745491936812,300.0,0.00019,2]
[358863656,1745492082514,573.11331453,0.00037,120]
[358863657,1745492368236,159.55678284,0.00037808,60]
[358863658,1745492399244,186.68,0.00017532,2]
[358863659,1745492522239,2048.02384028,0.000378,120]
[358863660,1745492546750,6000.0,0.000378,120]
[358863661,1745492613513,11329.52533977,0.00037,60]
[358863662,1745492640168,2405.82,0.000378,60]
[358863663,1745492773843,2505.61864931,0.00037808,60]
[358863664,1745493031723,-2059.328,0.000196,2]
[358863665,1745493031733,-1588.27552797,0.00019888,2]
[358863666,1745493031744,-300.0,0.00019899,2]
[358863667,1745493031754,-593.9887,0.000199,2]
[358863668,1745493031764,-151.8858405,0.000199,2]
[358863669,1745493031775,-348.23404781,0.000199,2]
[358863702,1745493037688,-1329.90840899,0.000199,2]
[358863703,1745493037699,-811.61970693,0.0001999,2]
[358863704,1745493037708,-1155.78514212,0.0001999,2]
[358863705,1745493037718,-811.61970693,0.0001999,2]
[358863706,1745493037728,-811.61970693,0.0001999,2]
[358863707,1745493037737,-1200.0,0.00019997,2]
[358863708,1745493037747,-5000.0,0.00019999,2]
[358863709,1745493037757,-670.87075064,0.00019999,2]
[358863710,1745493037767,-300.0,0.00019999,2]
[358863711,1745493037776,-500.0,0.00019999,2]
[358863712,1745493037785,-500.0,0.00019999,2]
[358863713,1745493037795,-500.0,0.00019999,2]
[358863714,1745493037806,-500.0,0.00019999,2]
[358863715,1745493037815,-500.0,0.00019999,2]
[358863716,1745493037825,-500.0,0.00019999,2]
[358863717,1745493037837,-500.0,0.00019999,2]
[358863718,1745493037847,-500.0,0.00019999,2]
[358863719,1745493037858,-300.0,0.00019999,2]
[358863720,1745493037867,-300.0,0.00019999,2]
[358863721,1745493037879,-500.0,0.00019999,2]
[358863722,1745493037889,-500.0,0.00019999,2]
[358863723,1745493037900,-666.0,0.00019999,2]
[358863724,1745493037911,-150.0,0.00019999,2]
[358863725,1745493037922,-150.0,0.00019999,2]
[358863726,1745493037931,-150.0,0.00019999,2]
[358863727,1745493037941,-150.0,0.00019999,2]
[358863728,1745493037951,-150.0,0.00019999,2]
[358863729,1745493037962,-150.0,0.00019999,2]
[358863730,1745493037971,-150.0,0.00019999,2]
[358863731,1745493037981,-150.0,0.00019999,2]
[358863732,1745493037991,-397.4861934,0.0002,2]
[358863733,1745493038001,-112930.65004797,0.0002,2]
[358863735,1745493038011,-1251927.12779344,0.0002,2]
[358863737,1745493038023,-8005.76840425,0.0002,2]
[358863739,1745493038032,-213.31021645,0.0002,2]
[358863741,1745493038042,-2486099.4463793,0.0002,2]
[358863958,1745493040044,-776.67450599,0.0002,2]
[358864643,1745493292403,308.89166693,0.00037808,60]
[358864644,1745493346295,1772.0,0.00037808,60]
[358864645,1745493393173,190.58213088,0.00037808,60]
[358864646,1745493584645,3694.14,0.00037808,60]
[358864648,1745493771033,250.0,0.00017,2]
[358864649,1745493772121,300.0,0.00019,2]
[358864650,1745493886925,200.0,0.00030137,120]
[358864653,1745494205764,329.74,0.00019,2]
[358864664,1745494231892,-1647.462,0.000196,2]
[358864665,1745494231902,-150.0,0.00019625,2]
[358864666,1745494231912,-250.0,0.0001965,2]
[358864667,1745494231921,-1529.76902895,0.000197,2]
[358864668,1745494231931,-250.0,0.00019885,2]
[358864669,1745494231941,-576.32707105,0.00019899,2]
[358864687,1745494237948,-623.67292895,0.00019899,2]
[358864688,1745494237959,-300.0,0.00019899,2]
[358864689,1745494237968,-5130.0689,0.000199,2]
[358864690,1745494237977,-184.62091697,0.000199,2]
[358864691,1745494237988,-303.771681,0.000199,2]
[358864692,1745494237997,-3356.28491358,0.000199,2]
[358864693,1745494238007,-10654.0,0.00019973,2]
[358864694,1745494238017,-500.0,0.00019973,2]
[358864695,1745494238028,-606.0,0.00019973,2]
[358864696,1745494238038,-500.0,0.00019973,2]
[358864697,1745494238048,-263.98089763,0.00019973,2]
[358864698,1745494238058,-487.70724251,0.00019973,2]
[358864699,1745494238068,-501.04190365,0.00019973,2]
[358864700,1745494238078,-500.0,0.00019973,2]
[358864701,1745494238088,-591.19722479,0.00019973,2]
[358864702,1745494238099,-1000.0,0.00019976,2]
[358864703,1745494238108,-10933.80237741,0.00019989,2]
[358864704,1745494238118,-1217.4295604,0.0001999,2]
[358864705,1745494238127,-1217.4295604,0.0001999,2]
[358864706,1745494238140,-1217.4295604,0.0001999,2]
[358864707,1745494238151,-179.82,0.00019999,2]
[358864708,1745494238160,-300.0,0.00019999,2]
[358864709,1745494238170,-500.0,0.00019999,2]
[358864710,1745494238182,-500.0,0.00019999,2]
[358864711,1745494238192,-500.0,0.00019999,2]
[358864712,1745494238202,-500.0,0.00019999,2]
[358864713,1745494238211,-500.0,0.00019999,2]
[358864714,1745494238222,-500.0,0.00019999,2]
[358864715,1745494238232,-500.0,0.00019999,2]
[358864716,1745494238242,-300.0,0.00019999,2]
[358864717,1745494238251,-300.0,0.00019999,2]
[358864718,1745494238261,-500.0,0.00019999,2]
[358864719,1745494238271,-500.0,0.00019999,2]
[358864720,1745494238281,-666.0,0.00019999,2]
[358864721,1745494238291,-453.42099255,0.00019999,2]
[358864722,1745494238300,-4410.8357485,0.00019999,2]
[358864723,1745494238311,-2639.72754438,0.00019999,2]
[358864724,1745494238320,-2348.59,0.00019999,2]
[358864725,1745494238329,-971.8384,0.00019999,2]
[358864726,1745494238339,-150.0,0.00019999,2]
[358864727,1745494238349,-150.0,0.00019999,2]
[358864728,1745494238358,-150.0,0.00019999,2]
[358864729,1745494238369,-150.0,0.00019999,2]
[358864731,1745494238378,-150.0,0.00019999,2]
[358864733,1745494238388,-150.0,0.00019999,2]
[358864735,1745494238397,-150.0,0.00019999,2]
[358864737,1745494238407,-150.0,0.00019999,2]
[358864739,1745494238417,-150.0,0.00019999,2]
[358864741,1745494238426,-150.0,0.00019999,2]
[358864744,1745494238436,-150.0,0.00019999,2]
[358864746,1745494238446,-150.0,0.00019999,2]
[358864748,1745494238455,-150.0,0.00019999,2]
[358864750,1745494238465,-150.0,0.00019999,2]
[358864752,1745494238476,-150.0,0.00019999,2]
[358864754,1745494238486,-150.0,0.00019999,2]
[358864756,1745494238496,-150.0,0.00019999,2]
[358864758,1745494238506,-150.0,0.00019999,2]
[358864760,1745494238516,-150.0,0.00019999,2]
[358864762,1745494238526,-150.0,0.00019999,2]
[358864764,1745494238535,-150.0,0.00019999,2]
[358864766,1745494238545,-150.0,0.00019999,2]
[358864768,1745494238555,-150.0,0.00019999,2]
[358864770,1745494238564,-150.0,0.00019999,2]
[358864772,1745494238573,-150.0,0.00019999,2]
[358864774,1745494238583,-150.0,0.00019999,2]
[358864777,1745494238594,-150.0,0.00019999,2]
[358864779,1745494238604,-150.0,0.00019999,2]
[358864781,1745494238614,-1234932.89619769,0.0002,2]
[358864783,1745494238623,-213.31021645,0.0002,2]
[358864785,1745494238633,-847520.00185022,0.0002,2]
[358864787,1745494238645,-2494318.525,0.0002,2]
[358864790,1745494238661,-2526.5108,0.0002,2]
[358864945,1745494240110,-607.46602351,0.00019999,2]
[358864957,1745494240219,-712.39774868,0.00019999,2]
[358864959,1745494240229,-226.71049627,0.00019999,2]
[358864961,1745494240239,-226.71049627,0.00019999,2]
[358864963,1745494240249,-5042748.14838748,0.0002,2]
[358864967,1745494240276,-2439.74720309,0.0002,2]
[358864970,1745494240290,-4930.9037663,0.0002,2]
[358864972,1745494240302,-1000.0,0.0002,2]
[358865240,1745494242966,-1319.86377219,0.00019999,2]
[358865242,1745494242976,-4843.55042176,0.0002,2]
[358865253,1745494243072,-1769.62,0.0002,2]
[358865278,1745494243325,-3447.51354814,0.0002,2]
[358865349,1745494246276,-3212.66273304,0.0002,2]
[358865350,1745494246321,-925.95508259,0.0002,2]
[358865353,1745494407722,801.25,0.0001999,3]
[358865354,1745494427473,1800.0,0.000192,7]
[358865355,1745494429835,3700.0,0.000193,7]
[358865356,1745494431945,5500.0,0.000194,7]
[358865357,1745494434028,7400.0,0.000195,7]
[358865358,1745494436123,9200.0,0.000196,7]
[358865359,1745494438317,1800.0,0.000197,7]
[358865360,1745494440346,1800.0,0.000198,7]
[358865361,1745494442429,1800.0,0.000199,7]